[Event "Schachfestival Open-A 2018"]
[Site "Lueneburg"]
[Date "2018.07.13"]
[Round "9"]
[White "Kumsiashvili, Nikoloz"]
[Black "Herrmann, Andreas"]
[Result "1-0"]
[ECO "A56"]
[WhiteElo "2411"]
[BlackElo "2171"]
[Annotator "NA"]
[PlyCount "92"]
[EventDate "2018.07.06"]
[EventType "swiss"]
[EventCountry "GER"]
[SourceTitle "playchess.com"]
[Source "ChessBase"]
[SourceQuality "1"]
[TimeControl "40/5400+30:1800+30"]

1. d4 {[%emt 0:00:00]} Nf6 {[%emt 0:00:00]} 2. c4 {[%emt 0:00:00]} c5 {[%emt 0:00:00]} 3. d5 {[%emt 0:00:00]} e5 {[%emt 0:00:00]} 4. Nc3 {[%emt 0:00:00]} d6 {[%emt 0:00:00]} 5. e4 {[%emt 0:00:00]} Be7 {[%emt 0:00:00]} 6. Bd3 {[%emt 0:00:27]} Nbd7 {[%emt 0:00:06]} 7. Be3 {[%emt 0:00:15]} Nf8 {[%emt 0:00:06]} 8. f3 {[%emt 0:00:25]} Ng6 {[%emt 0:00:13]} 9. Nge2 {[%emt 0:00:05]} a6 {[%emt 0:00:11]} 10. O-O {[%emt 0:01:39]} O-O {[%emt 0:00:06]} 11. a3 {[%emt 0:00:02]} Bd7 {[%emt 0:01:45]} 12. b4 {[%emt 0:01:05]} b6 {[%emt 0:00:06]} 13. Rb1 {[%emt 0:01:50]} Ne8 {[%emt 0:00:18]} 14. Qd2 {[%emt 0:02:15]} h6 {[%emt 0:00:19]} 15. Bc2 {[%emt 0:01:58]} Bg5 {[%emt 0:00:12]} 16. Bxg5 {[%emt 0:00:45]} hxg5 {[%emt 0:00:09]} 17. bxc5 {[%emt 0:00:03]} bxc5 {[%emt 0:00:19]} 18. Ba4 {[%emt 0:00:04]} Bc8 {[%emt 0:00:40]} 19. Bc6 {[%emt 0:00:41]} Ra7 {[%emt 0:00:07]} 20. Rb8 {[%emt 0:00:19]} Ne7 {[%emt 0:04:09]} 21. Qxg5 {[%emt 0:05:36]} f6 {[%emt 0:04:25]} 22. Qd2 {[%emt 0:00:54]} Qc7 {[%emt 0:00:46]} 23. Rfb1 {[%emt 0:00:36]} Nxc6 {[%emt 0:00:33]} 24. dxc6 {[%emt 0:00:05]} Qxc6 {[%emt 0:00:58]} 25. Qd5+ {[%emt 0:05:26]} Qxd5 {[%emt 0:00:14]} 26. Nxd5 {[%emt 0:00:01]} Be6 {[%emt 0:00:41]} 27. Nec3 {[%emt 0:01:11]} f5 {[%emt 0:03:21]} 28. Rd8 {[%emt 0:00:49]} fxe4 {[%emt 0:00:13]} 29. Nxe4 {[%emt 0:00:11]} Bf5 {[%emt 0:00:20]} 30. Rbb8 {[%emt 0:02:29]} Bxe4 {[%emt 0:00:12]} 31. fxe4 {[%emt 0:00:01]} Raf7 {[%emt 0:00:26]} 32. h3 {[%emt 0:00:29]} Nf6 {[%emt 0:04:09]} 33. Rxf8+ {[%emt 0:01:47]} Rxf8 {[%emt 0:00:27]} 34. Rxf8+ {[%emt 0:00:03]} Kxf8 {[%emt 0:00:10]} 35. Nxf6 {[%emt 0:00:03]} gxf6 {[%emt 0:00:07]} 36. Kf2 {[%emt 0:00:57]} Kf7 {[%emt 0:01:36]} 37. Kf3 {[%emt 0:01:15]} Kg6 {[%emt 0:00:48]} 38. g4 {[%emt 0:01:19]} Kg5 {[%emt 0:01:23]} 39. Kg3 {[%emt 0:00:05]} Kg6 {[%emt 0:00:14]} 40. h4 {[%emt 0:00:09]} Kh6 {[%emt 0:06:27]} 41. Kh3 {[%emt 0:30:02]} Kg6 {[%emt 0:30:34]} 42. h5+ {[%emt 0:00:08]} Kg7 {[%emt 0:00:27]} 43. Kh4 {[%emt 0:00:16]} Kh6 44. g5+ fxg5+ 45. Kg4 d5 46. exd5 e4 1-0

[Event "Schachfestival Open-A 2018"]
[Site "Lueneburg"]
[Date "2018.07.13"]
[Round "9"]
[White "Sriram, Jha"]
[Black "Marzik, Hans"]
[Result "1/2-1/2"]
[ECO "E70"]
[WhiteElo "2409"]
[BlackElo "2121"]
[Annotator "NA"]
[PlyCount "121"]
[EventDate "2018.07.06"]
[EventType "swiss"]
[EventCountry "GER"]
[SourceTitle "playchess.com"]
[Source "ChessBase"]
[SourceQuality "1"]
[TimeControl "40/5400+30:1800+30"]

1. d4 {[%emt 0:00:00]} Nf6 {[%emt 0:00:00]} 2. c4 {[%emt 0:00:00]} g6 {[%emt 0:00:00]} 3. Nc3 {[%emt 0:00:00]} Bg7 {[%emt 0:00:00]} 4. e4 {[%emt 0:00:00]} O-O {[%emt 0:00:00]} 5. Nge2 {[%emt 0:00:09]} d6 {[%emt 0:01:11]} 6. f3 {[%emt 0:00:06]} c6 {[%emt 0:00:37]} 7. Be3 {[%emt 0:00:12]} a6 {[%emt 0:00:05]} 8. c5 {[%emt 0:01:23]} Nbd7 {[%emt 0:07:36]} 9. cxd6 {[%emt 0:03:37]} exd6 {[%emt 0:00:05]} 10. Nf4 {[%emt 0:00:31]} b5 {[%emt 0:01:46]} 11. Be2 {[%emt 0:00:13]} Nb6 {[%emt 0:02:13]} 12. O-O {[%emt 0:00:59]} Rb8 {[%emt 0:03:21]} 13. Rc1 {[%emt 0:04:40]} Re8 {[%emt 0:01:02]} 14. Bf2 {[%emt 0:01:22]} Bh6 {[%emt 0:05:50]} 15. g3 {[%emt 0:02:23]} d5 {[%emt 0:12:22]} 16. e5 {[%emt 0:19:34]} Bxf4 {[%emt 0:01:52]} 17. gxf4 {[%emt 0:00:07]} Nh5 {[%emt 0:00:00]} 18. Bg3 {[%emt 0:02:34]} Bf5 {[%emt 0:00:21]} 19. b3 {[%emt 0:00:14]} Nd7 {[%emt 0:01:38]} 20. Qd2 {[%emt 0:00:23]} Nf8 {[%emt 0:00:21]} 21. Nd1 {[%emt 0:00:13]} Rc8 {[%emt 0:01:29]} 22. Ne3 {[%emt 0:00:26]} Ng7 {[%emt 0:18:32]} 23. Ng4 {[%emt 0:01:00]} Bxg4 {[%emt 0:00:05]} 24. fxg4 {[%emt 0:00:03]} f5 {[%emt 0:00:04]} 25. exf6 {[%emt 0:01:08]} Qxf6 {[%emt 0:00:03]} 26. f5 {[%emt 0:02:06]} gxf5 {[%emt 0:01:05]} 27. gxf5 {[%emt 0:02:10]} Nd7 {[%emt 0:01:29]} 28. Bf3 {[%emt 0:02:37]} Rf8 {[%emt 0:08:02]} 29. Bg4 {[%emt 0:06:50]} Rce8 {[%emt 0:02:12]} 30. Qf2 {[%emt 0:08:22]} h5 {[%emt 0:06:22]} 31. Bh3 {[%emt 0:01:20]} Re4 {[%emt 0:01:15]} 32. Bg2 {[%emt 0:11:40]} h4 {[%emt 0:07:52]} 33. Bf4 {[%emt 0:06:24]} Ree8 {[%emt 0:04:48]} 34. Bh3 {[%emt 0:03:42]} Rf7 {[%emt 0:06:20]} 35. Qd2 {[%emt 0:09:26]} Nh5 {[%emt 0:02:36]} 36. Kh1 {[%emt 0:03:29]} Nxf4 {[%emt 0:03:47]} 37. Qxf4 {[%emt 0:00:31]} Rg7 {[%emt 0:00:14]} 38. Rce1 {[%emt 0:01:00]} Rxe1 {[%emt 0:00:17]} 39. Rxe1 {[%emt 0:00:01]} c5 {[%emt 0:01:17]} 40. Bg2 {[%emt 0:05:32]} Qxd4 {[%emt 0:00:19]} 41. Qxd4 {[%emt 0:30:30]} cxd4 {[%emt 0:30:03]} 42. Bxd5+ {[%emt 0:00:02]} Kf8 {[%emt 0:00:22]} 43. Re4 {[%emt 0:00:00]} Nf6 {[%emt 0:00:00]} 44. Re5 {[%emt 0:00:00]} h3 {[%emt 0:00:00]} 45. Bf3 {[%emt 0:00:00]} Re7 {[%emt 0:00:00]} 46. Re2 {[%emt 0:00:00]} Rxe2 {[%emt 0:00:00]} 47. Bxe2 {[%emt 0:00:00]} Ke7 {[%emt 0:00:00]} 48. Kg1 {[%emt 0:00:00]} Ne4 {[%emt 0:00:00]} 49. a4 {[%emt 0:00:00]} bxa4 {[%emt 0:00:00]} 50. bxa4 {[%emt 0:00:00]} Nc3 {[%emt 0:00:00]} 51. Bxa6 Nxa4 {[%emt 0:00:00]} 52. Kf2 {[%emt 0:00:00]} Nc5 {[%emt 0:00:00]} 53. Bf1 {[%emt 0:00:00]} Ne4+ {[%emt 0:00:00]} 54. Ke2 {[%emt 0:00:00]} Kf6 {[%emt 0:00:00]} 55. Bxh3 {[%emt 0:00:00]} Nd6 {[%emt 0:00:00]} 56. Kd3 {[%emt 0:00:00]} Nxf5 {[%emt 0:00:00]} 57. Ke4 {[%emt 0:00:00]} Nh4 {[%emt 0:01:19]} 58. Bg4 {[%emt 0:00:00]} Kg5 {[%emt 0:00:09]} 59. h3 {[%emt 0:00:00]} Ng2 {[%emt 0:00:06]} 60. Kxd4 {[%emt 0:00:00]} Nf4 {[%emt 0:00:04]} 61. Ke4 1/2-1/2

[Event "Schachfestival Open-A 2018"]
[Site "Lueneburg"]
[Date "2018.07.13"]
[Round "9"]
[White "Colpe, Malte"]
[Black "von Estorff, Jacob"]
[Result "1-0"]
[ECO "D41"]
[WhiteElo "2382"]
[BlackElo "1838"]
[Annotator "NA"]
[PlyCount "49"]
[EventDate "2018.07.06"]
[EventType "swiss"]
[EventCountry "GER"]
[SourceTitle "playchess.com"]
[Source "ChessBase"]
[SourceQuality "1"]
[TimeControl "40/5400+30:1800+30"]

1. d4 {[%emt 0:00:00]} d5 {[%emt 0:00:04]} 2. c4 {[%emt 0:00:10]} e6 {[%emt 0:00:09]} 3. Nc3 {[%emt 0:00:19]} Nf6 {[%emt 0:00:03]} 4. Nf3 {[%emt 0:00:23]} c5 {[%emt 0:03:25]} 5. cxd5 {[%emt 0:00:53]} Nxd5 {[%emt 0:01:01]} 6. e4 {[%emt 0:01:39]} Nxc3 {[%emt 0:07:57]} 7. bxc3 {[%emt 0:00:08]} cxd4 {[%emt 0:03:57]} 8. cxd4 {[%emt 0:00:09]} Nc6 {[%emt 0:03:14]} 9. Bc4 {[%emt 0:07:19]} Bb4+ {[%emt 0:06:06]} 10. Bd2 {[%emt 0:02:01]} O-O {[%emt 0:01:33]} 11. Bxb4 {[%emt 0:03:13]} Nxb4 {[%emt 0:02:25]} 12. O-O {[%emt 0:00:24]} Nc6 {[%emt 0:10:01]} 13. Rc1 {[%emt 0:04:56]} Na5 {[%emt 0:02:11]} 14. Bd3 {[%emt 0:02:17]} b6 {[%emt 0:01:15]} 15. Qd2 {[%emt 0:06:18]} Bb7 {[%emt 0:00:58]} 16. Qf4 {[%emt 0:02:03]} Qf6 {[%emt 0:03:03]} 17. Qg3 {[%emt 0:10:34]} Qg6 {[%emt 0:07:19]} 18. Qh3 {[%emt 0:02:47]} Nc6 {[%emt 0:09:34]} 19. Rxc6 {[%emt 0:03:36]} Bxc6 {[%emt 0:01:27]} 20. Ne5 {[%emt 0:00:07]} Qg5 {[%emt 0:04:24]} 21. Nxc6 {[%emt 0:01:10]} Qd2 {[%emt 0:03:43]} 22. d5 {[%emt 0:07:41]} Qxa2 {[%emt 0:11:16]} 23. e5 {[%emt 0:01:10]} h6 {[%emt 0:00:04]} 24. d6 {[%emt 0:05:08]} a5 {[%emt 0:01:31]} 25. Qe3 {[%emt 0:01:47]} 1-0

[Event "Schachfestival Open-A 2018"]
[Site "Lueneburg"]
[Date "2018.07.13"]
[Round "9"]
[White "Buchenau, Frank"]
[Black "Hesse, Henrik"]
[Result "1-0"]
[ECO "B06"]
[WhiteElo "2275"]
[BlackElo "2057"]
[Annotator "NA"]
[PlyCount "77"]
[EventDate "2018.07.06"]
[EventType "swiss"]
[EventCountry "GER"]
[SourceTitle "playchess.com"]
[Source "ChessBase"]
[SourceQuality "1"]
[TimeControl "40/5400+30:1800+30"]

1. e4 {[%emt 0:00:00]} g6 {[%emt 0:00:23]} 2. d4 {[%emt 0:00:00]} Bg7 {[%emt 0:00:05]} 3. Nc3 {[%emt 0:00:22]} d5 {[%emt 0:00:09]} 4. exd5 {[%emt 0:00:37]} Nf6 {[%emt 0:01:05]} 5. Bc4 {[%emt 0:00:51]} O-O {[%emt 0:02:40]} 6. Nge2 {[%emt 0:05:03]} Nbd7 {[%emt 0:00:47]} 7. Nf4 {[%emt 0:00:23]} Nb6 {[%emt 0:02:15]} 8. Bb3 {[%emt 0:00:09]} Bf5 {[%emt 0:07:45]} 9. O-O {[%emt 0:04:11]} h6 {[%emt 0:06:23]} 10. Re1 {[%emt 0:05:46]} Re8 {[%emt 0:03:47]} 11. h3 {[%emt 0:04:14]} g5 {[%emt 0:03:08]} 12. Nh5 {[%emt 0:01:31]} Nxh5 {[%emt 0:00:23]} 13. Qxh5 {[%emt 0:00:08]} Bg6 {[%emt 0:03:33]} 14. Qf3 {[%emt 0:02:51]} Bxd4 {[%emt 0:08:09]} 15. h4 {[%emt 0:01:56]} Nd7 {[%emt 0:23:36]} 16. hxg5 {[%emt 0:01:42]} hxg5 {[%emt 0:00:05]} 17. Bxg5 {[%emt 0:01:19]} Kg7 {[%emt 0:00:05]} 18. Rad1 {[%emt 0:01:37]} Be5 {[%emt 0:06:16]} 19. Nb5 {[%emt 0:06:07]} Rh8 {[%emt 0:05:12]} 20. Rxe5 Nxe5 21. Qc3 {[%emt 0:05:22]} f6 {[%emt 0:00:05]} 22. Nxc7 {[%emt 0:00:40]} Qc8 {[%emt 0:10:42]} 23. d6 {[%emt 0:10:39]} Qg4 {[%emt 0:01:45]} 24. Ne6+ {[%emt 0:08:41]} Kf7 {[%emt 0:02:50]} 25. Rd4 {[%emt 0:06:31]} Qxe6 {[%emt 0:02:08]} 26. Qc7 {[%emt 0:03:20]} Rae8 {[%emt 0:03:11]} 27. Rf4 {[%emt 0:00:28]} Qxb3 {[%emt 0:01:22]} 28. axb3 {[%emt 0:02:03]} Ke6 {[%emt 0:00:04]} 29. Bh4 {[%emt 0:01:43]} Bf5 {[%emt 0:00:25]} 30. Qxb7 {[%emt 0:03:15]} Ng6 {[%emt 0:02:47]} 31. Rd4 {[%emt 0:06:17]} Nxh4 {[%emt 0:01:09]} 32. d7 {[%emt 0:04:34]} Kf7 33. dxe8=Q+ {[%emt 0:00:21]} Rxe8 {[%emt 0:00:32]} 34. Rxh4 {[%emt 0:00:23]} Bxc2 {[%emt 0:00:15]} 35. Qd5+ {[%emt 0:00:14]} e6 {[%emt 0:00:03]} 36. Qc4 {[%emt 0:00:23]} Bg6 {[%emt 0:00:22]} 37. Rd4 {[%emt 0:00:07]} Re7 {[%emt 0:00:13]} 38. Qc6 {[%emt 0:00:17]} Bf5 {[%emt 0:00:20]} 39. Rd7 {[%emt 0:00:08]} 1-0

[Event "Schachfestival Open-A 2018"]
[Site "Lueneburg"]
[Date "2018.07.13"]
[Round "9"]
[White "Bente, Bjoern"]
[Black "Ploder, Udo"]
[Result "1-0"]
[ECO "C50"]
[WhiteElo "2219"]
[BlackElo "1874"]
[Annotator "NA"]
[PlyCount "107"]
[EventDate "2018.07.06"]
[EventType "swiss"]
[EventCountry "GER"]
[SourceTitle "playchess.com"]
[Source "ChessBase"]
[SourceQuality "1"]
[TimeControl "40/5400+30:1800+30"]

1. e4 {[%emt 0:00:00]} e5 {[%emt 0:00:00]} 2. Nf3 {[%emt 0:00:00]} Nc6 {[%emt 0:00:00]} 3. Bc4 {[%emt 0:00:00]} Nf6 {[%emt 0:00:01]} 4. d3 {[%emt 0:00:00]} Bc5 {[%emt 0:00:42]} 5. O-O {[%emt 0:00:10]} d6 {[%emt 0:01:14]} 6. h3 {[%emt 0:01:28]} O-O {[%emt 0:02:46]} 7. c3 {[%emt 0:00:31]} Bb6 {[%emt 0:03:08]} 8. Bb3 {[%emt 0:02:08]} Be6 {[%emt 0:02:06]} 9. Bc2 {[%emt 0:04:21]} Ne7 {[%emt 0:03:34]} 10. Nbd2 {[%emt 0:02:26]} Ng6 {[%emt 0:01:30]} 11. Re1 {[%emt 0:01:02]} Nf4 {[%emt 0:01:59]} 12. Nf1 {[%emt 0:00:11]} N6h5 {[%emt 0:02:50]} 13. Be3 {[%emt 0:01:08]} Qf6 {[%emt 0:06:35]} 14. Ng3 {[%emt 0:03:34]} Qg6 {[%emt 0:06:32]} 15. Nh4 {[%emt 0:02:31]} Qg5 {[%emt 0:05:37]} 16. Qxh5 {[%emt 0:02:12]} Qxh5 {[%emt 0:09:13]} 17. Nxh5 {[%emt 0:00:04]} Nxh5 {[%emt 0:00:12]} 18. Nf5 {[%emt 0:03:09]} g6 {[%emt 0:01:13]} 19. Nh4 {[%emt 0:06:12]} f5 {[%emt 0:04:37]} 20. Nf3 {[%emt 0:01:26]} Kg7 {[%emt 0:05:04]} 21. d4 {[%emt 0:12:38]} f4 {[%emt 0:07:27]} 22. Bd2 {[%emt 0:00:16]} exd4 {[%emt 0:00:56]} 23. cxd4 {[%emt 0:00:05]} h6 {[%emt 0:06:00]} 24. d5 {[%emt 0:02:02]} Bg8 {[%emt 0:01:46]} 25. Bc3+ {[%emt 0:00:08]} Nf6 {[%emt 0:01:20]} 26. Nd4 {[%emt 0:02:44]} Rae8 {[%emt 0:00:52]} 27. a4 {[%emt 0:03:53]} a5 {[%emt 0:01:19]} 28. Nb3 {[%emt 0:01:57]} Rf7 {[%emt 0:06:25]} 29. Nxa5 {[%emt 0:01:03]} Bxa5 {[%emt 0:02:12]} 30. Bxa5 {[%emt 0:00:41]} Kh7 {[%emt 0:01:42]} 31. f3 {[%emt 0:02:00]} Nd7 {[%emt 0:01:38]} 32. Rec1 {[%emt 0:00:54]} Ne5 {[%emt 0:01:07]} 33. Bc3 {[%emt 0:00:40]} Rc8 {[%emt 0:02:19]} 34. Bb3 {[%emt 0:03:08]} Re7 {[%emt 0:00:15]} 35. Bxe5 {[%emt 0:02:23]} Rxe5 {[%emt 0:00:19]} 36. Rc3 {[%emt 0:00:04]} Re7 {[%emt 0:02:22]} 37. Rac1 {[%emt 0:01:35]} Bf7 {[%emt 0:00:22]} 38. Bd1 {[%emt 0:00:31]} Be8 {[%emt 0:00:32]} 39. a5 {[%emt 0:00:23]} Bb5 {[%emt 0:03:38]} 40. Kf2 {[%emt 0:00:15]} Kg7 {[%emt 0:00:46]} 41. Rb3 {[%emt 0:32:15]} Ba6 {[%emt 0:31:49]} 42. Be2 {[%emt 0:02:30]} Ra8 {[%emt 0:00:00]} 43. Bxa6 {[%emt 0:00:00]} Rxa6 {[%emt 0:00:00]} 44. Rxb7 {[%emt 0:00:00]} Rxa5 {[%emt 0:00:00]} 45. Rcxc7 {[%emt 0:00:00]} Rxc7 {[%emt 0:00:00]} 46. Rxc7+ {[%emt 0:00:00]} Kf6 {[%emt 0:00:00]} 47. Rd7 {[%emt 0:00:00]} Ra6 {[%emt 0:00:00]} 48. Ke2 {[%emt 0:00:00]} Rb6 {[%emt 0:00:00]} 49. b4 {[%emt 0:00:00]} Ke5 {[%emt 0:00:00]} 50. Kd3 {[%emt 0:00:00]} Rxb4 {[%emt 0:00:00]} 51. Re7+ {[%emt 0:00:00]} Kf6 {[%emt 0:00:00]} 52. Re6+ {[%emt 0:00:00]} Kf7 {[%emt 0:00:00]} 53. Rxd6 {[%emt 0:00:00]} Rb2 {[%emt 0:00:00]} 54. e5 {[%emt 0:00:00]} 1-0

[Event "Schachfestival Open-A 2018"]
[Site "Lueneburg"]
[Date "2018.07.13"]
[Round "9"]
[White "Poeck, Ole"]
[Black "Wagner, Benjamin"]
[Result "1-0"]
[ECO "E90"]
[WhiteElo "2195"]
[BlackElo "2111"]
[Annotator "NA"]
[PlyCount "54"]
[EventDate "2018.07.06"]
[EventType "swiss"]
[EventCountry "GER"]
[SourceTitle "playchess.com"]
[Source "ChessBase"]
[SourceQuality "1"]
[TimeControl "40/5400+30:1800+30"]

1. d4 Nf6 2. c4 g6 3. Nc3 Bg7 4. e4 d6 5. Nf3 O-O 6. h3 e5 7. d5 Nh5 8. g3 f5 9. exf5 gxf5 10. Ng5 Nf6 11. g4 h6 12. Ne6 Bxe6 13. dxe6 f4 14. h4 Nc6 15. g5 Nh7 16. Nd5 Ne7 17. gxh6 Bxh6 18. Qh5 Nxd5 19. Qxh6 Qf6 20. Rg1+ Kh8 21. Rg6 Nb4 22. Rxf6 Rxf6 23. Qh5 Rxe6 24. Bh3 Re7 25. Bf5 Rg8 26. b3 Rg1+ 27. Ke2 Nc6 1-0

[Event "Schachfestival Open-A 2018"]
[Site "Lueneburg"]
[Date "2018.07.13"]
[Round "9"]
[White "Utiatskaja, Irina"]
[Black "Bogachkova, Alena"]
[Result "1-0"]
[ECO "B77"]
[WhiteElo "2155"]
[BlackElo "2135"]
[Annotator "NA"]
[PlyCount "61"]
[EventDate "2018.07.06"]
[EventType "swiss"]
[EventCountry "GER"]
[SourceTitle "playchess.com"]
[Source "ChessBase"]
[SourceQuality "1"]
[TimeControl "40/5400+30:1800+30"]

1. e4 {[%emt 0:00:00]} c5 {[%emt 0:00:00]} 2. Nf3 {[%emt 0:00:00]} d6 {[%emt 0:00:00]} 3. d4 {[%emt 0:00:04]} cxd4 {[%emt 0:00:00]} 4. Nxd4 {[%emt 0:00:04]} Nf6 {[%emt 0:00:00]} 5. Nc3 {[%emt 0:00:08]} g6 {[%emt 0:00:08]} 6. Be3 {[%emt 0:00:41]} Bg7 {[%emt 0:00:07]} 7. f3 {[%emt 0:00:05]} O-O {[%emt 0:00:17]} 8. Qd2 {[%emt 0:00:36]} Nc6 {[%emt 0:00:16]} 9. Bc4 {[%emt 0:03:26]} Bd7 {[%emt 0:01:31]} 10. h4 {[%emt 0:03:27]} Ne5 {[%emt 0:04:25]} 11. Bb3 {[%emt 0:00:24]} h5 {[%emt 0:01:16]} 12. O-O-O {[%emt 0:00:25]} Rc8 {[%emt 0:04:18]} 13. Bg5 {[%emt 0:06:37]} Rc5 {[%emt 0:04:05]} 14. Kb1 {[%emt 0:02:00]} b5 {[%emt 0:01:21]} 15. g4 {[%emt 0:07:23]} a5 {[%emt 0:06:12]} 16. gxh5 {[%emt 0:10:01]} Nxh5 {[%emt 0:01:15]} 17. Nd5 {[%emt 0:00:19]} Re8 {[%emt 0:00:30]} 18. Nf4 {[%emt 0:00:41]} Nxf4 {[%emt 0:03:48]} 19. Qxf4 {[%emt 0:02:25]} Nc4 {[%emt 0:03:43]} 20. Qg3 {[%emt 0:02:14]} a4 {[%emt 0:01:22]} 21. Bxc4 {[%emt 0:00:10]} bxc4 {[%emt 0:00:13]} 22. h5 {[%emt 0:01:32]} Qa5 {[%emt 0:01:40]} 23. Bd2 {[%emt 0:08:42]} c3 {[%emt 0:01:37]} 24. Bxc3 {[%emt 0:00:24]} Rxc3 {[%emt 0:00:08]} 25. hxg6 {[%emt 0:01:49]} Rc5 {[%emt 0:04:59]} 26. e5 {[%emt 0:09:43]} Rxe5 {[%emt 0:01:07]} 27. gxf7+ {[%emt 0:00:15]} Kxf7 {[%emt 0:00:12]} 28. f4 {[%emt 0:00:19]} Rd5 {[%emt 0:01:24]} 29. Rdg1 {[%emt 0:01:07]} Rg8 {[%emt 0:00:29]} 30. Qg6+ {[%emt 0:00:28]} Kf8 {[%emt 0:00:15]} 31. Rh8 {[%emt 0:01:49]} 1-0

[Event "Schachfestival Open-A 2018"]
[Site "Lueneburg"]
[Date "2018.07.13"]
[Round "9"]
[White "Haerig, Wilfried"]
[Black "Kardoeus, David"]
[Result "1-0"]
[ECO "B90"]
[WhiteElo "2022"]
[BlackElo "2188"]
[Annotator "NA"]
[PlyCount "67"]
[EventDate "2018.07.06"]
[EventType "swiss"]
[EventCountry "GER"]
[SourceTitle "playchess.com"]
[Source "ChessBase"]
[SourceQuality "1"]
[TimeControl "40/5400+30:1800+30"]

1. e4 {[%emt 0:00:00]} c5 {[%emt 0:03:27]} 2. Nf3 {[%emt 0:00:00]} d6 {[%emt 0:00:12]} 3. d4 {[%emt 0:00:00]} cxd4 {[%emt 0:00:07]} 4. Nxd4 {[%emt 0:00:06]} Nf6 {[%emt 0:00:09]} 5. Nc3 {[%emt 0:00:07]} a6 {[%emt 0:00:28]} 6. Be3 {[%emt 0:00:26]} Ng4 {[%emt 0:01:57]} 7. Bg5 {[%emt 0:02:46]} h6 {[%emt 0:00:09]} 8. Bh4 {[%emt 0:08:46]} g5 {[%emt 0:00:15]} 9. Bg3 {[%emt 0:00:14]} Bg7 {[%emt 0:00:08]} 10. Be2 {[%emt 0:13:57]} h5 {[%emt 0:07:09]} 11. h4 {[%emt 0:02:16]} Nc6 {[%emt 0:12:34]} 12. Nb3 {[%emt 0:03:01]} gxh4 {[%emt 0:17:17]} 13. Bxh4 {[%emt 0:04:10]} Nce5 {[%emt 0:04:12]} 14. Qd2 {[%emt 0:04:06]} Ng6 {[%emt 0:07:08]} 15. Bg5 {[%emt 0:05:56]} Be5 {[%emt 0:14:41]} 16. f4 {[%emt 0:25:08]} Bg7 {[%emt 0:09:24]} 17. f5 {[%emt 0:02:18]} N6e5 {[%emt 0:01:41]} 18. Nd5 {[%emt 0:00:16]} Nc6 {[%emt 0:09:47]} 19. Bxg4 {[%emt 0:00:34]} hxg4 {[%emt 0:00:45]} 20. Rxh8+ {[%emt 0:00:16]} Bxh8 {[%emt 0:00:06]} 21. O-O-O {[%emt 0:00:10]} b5 {[%emt 0:05:13]} 22. Rh1 {[%emt 0:02:27]} Be5 {[%emt 0:03:23]} 23. f6 {[%emt 0:02:34]} Kd7 {[%emt 0:00:37]} 24. fxe7 {[%emt 0:00:54]} Nxe7 {[%emt 0:00:35]} 25. Bxe7 {[%emt 0:00:12]} Qg8 {[%emt 0:00:12]} 26. Bxd6 {[%emt 0:04:55]} Qg7 {[%emt 0:00:50]} 27. Bxe5 {[%emt 0:00:20]} Qxe5 {[%emt 0:00:08]} 28. Nb6+ {[%emt 0:00:11]} Ke7 {[%emt 0:00:38]} 29. Nxa8 {[%emt 0:00:14]} Be6 {[%emt 0:00:33]} 30. Rd1 {[%emt 0:01:02]} Qb8 {[%emt 0:00:18]} 31. Qg5+ {[%emt 0:01:25]} f6 {[%emt 0:00:08]} 32. Qc5+ {[%emt 0:00:23]} Ke8 {[%emt 0:00:28]} 33. Qc6+ {[%emt 0:00:16]} Kf7 {[%emt 0:00:07]} 34. Qc7+ {[%emt 0:00:09]} 1-0

[Event "Schachfestival Open-A 2018"]
[Site "Lueneburg"]
[Date "2018.07.13"]
[Round "9"]
[White "Harringer, Manfred"]
[Black "Roehr, Tobias"]
[Result "1-0"]
[ECO "B40"]
[WhiteElo "1998"]
[BlackElo "2180"]
[Annotator "NA"]
[PlyCount "63"]
[EventDate "2018.07.06"]
[EventType "swiss"]
[EventCountry "GER"]
[SourceTitle "playchess.com"]
[Source "ChessBase"]
[SourceQuality "1"]
[TimeControl "40/5400+30:1800+30"]

1. e4 {[%emt 0:00:00]} c5 {[%emt 0:00:00]} 2. Nf3 {[%emt 0:00:00]} e6 {[%emt 0:00:00]} 3. Nc3 {[%emt 0:00:06]} Nc6 {[%emt 0:00:55]} 4. g3 {[%emt 0:02:04]} Nge7 {[%emt 0:07:24]} 5. Bg2 {[%emt 0:02:21]} g6 {[%emt 0:06:12]} 6. O-O {[%emt 0:00:41]} Bg7 {[%emt 0:00:14]} 7. d3 {[%emt 0:02:58]} O-O {[%emt 0:00:24]} 8. Bf4 {[%emt 0:03:01]} d6 {[%emt 0:04:34]} 9. Qd2 {[%emt 0:03:00]} Rb8 {[%emt 0:04:10]} 10. a4 {[%emt 0:03:29]} a6 {[%emt 0:04:21]} 11. Bh6 {[%emt 0:01:13]} Nd4 {[%emt 0:03:30]} 12. Bxg7 {[%emt 0:07:40]} Kxg7 {[%emt 0:01:31]} 13. Ne2 {[%emt 0:06:25]} Nxe2+ {[%emt 0:10:15]} 14. Qxe2 {[%emt 0:00:11]} b5 {[%emt 0:02:12]} 15. d4 {[%emt 0:07:40]} cxd4 {[%emt 0:03:38]} 16. Nxd4 {[%emt 0:00:39]} e5 {[%emt 0:02:05]} 17. Nb3 {[%emt 0:04:19]} bxa4 {[%emt 0:04:37]} 18. Rxa4 {[%emt 0:01:34]} Bd7 {[%emt 0:01:29]} 19. Ra3 {[%emt 0:01:07]} Bb5 {[%emt 0:03:23]} 20. c4 {[%emt 0:02:39]} Bc6 {[%emt 0:01:18]} 21. Rd1 {[%emt 0:06:49]} Qc7 {[%emt 0:14:09]} 22. Qd3 {[%emt 0:02:24]} f5 {[%emt 0:05:54]} 23. Qxd6 {[%emt 0:07:24]} Qxd6 {[%emt 0:00:13]} 24. Rxd6 {[%emt 0:00:06]} fxe4 {[%emt 0:00:45]} 25. Nc5 {[%emt 0:03:51]} Kh6 {[%emt 0:04:46]} 26. b3 {[%emt 0:06:40]} e3 {[%emt 0:04:34]} 27. fxe3 {[%emt 0:01:04]} Bxg2 {[%emt 0:01:16]} 28. Kxg2 {[%emt 0:00:29]} Nf5 {[%emt 0:00:20]} 29. Rd3 {[%emt 0:00:41]} e4 {[%emt 0:04:42]} 30. Nxe4 {[%emt 0:01:10]} Rbe8 {[%emt 0:00:12]} 31. Nf2 {[%emt 0:00:20]} Nxe3+ {[%emt 0:00:19]} 32. Rxe3 {[%emt 0:00:09]} 1-0